bitfinex-derivatives/quotes_SOLF0:USTF0_20241005
["timestamp","ask_amount","ask_price","bid_price","bid_amount"]
[1728137610436,10.75,142.77,142.76,4.88]
[1728137610847,10.75,142.78,142.76,4.88]
[1728137611236,10.75,142.79,142.76,4.88]
[1728137612842,3.5018,142.78,142.76,4.88]
[1728137613544,10.75,142.79,142.76,4.88]
[1728137613741,3.5019,142.77,142.76,4.88]
[1728137614343,3.5019,142.77,142.74,15.6637]
[1728137614543,3.5019,142.77,142.76,4.88]
[1728137616646,10.75,142.79,142.76,4.88]
[1728137616948,3.5017,142.78,142.76,4.88]
[1728137617241,3.5019,142.77,142.76,4.88]
[1728137617549,4.88,142.83,142.76,4.88]
[1728137617847,3.5017,142.78,142.76,4.88]
[1728137624251,10.75,142.81,142.76,15.63]
[1728137624457,10.75,142.82,142.77,10.75]
[1728137625351,3.501,142.81,142.78,3.5016]
[1728137625552,3.501,142.81,142.79,4.88]
[1728137627358,14.251,142.81,142.79,4.88]
[1728137628251,14.2508,142.82,142.79,4.88]
[1728137628458,1.3376,142.86,142.79,15.63]
[1728137628760,10.87502,142.85,142.79,15.63]
[1728137629255,3.5006,142.83,142.79,8.3813]
[1728137632345,14.37512,142.85,142.81,3.5009]
[1728137632553,14.37512,142.85,142.82,4.88]
[1728137633250,3.5002,142.84,142.82,4.88]
[1728137637459,10.87502,142.85,142.82,4.88]
[1728137637655,3.5004,142.83,142.82,4.88]
[1728137637864,10.87502,142.85,142.82,4.88]
[1728137638355,3.5003,142.84,142.82,4.88]
[1728137647357,3.5003,142.84,142.8,3.5011]
[1728137647661,3.5003,142.84,142.81,4.88]
[1728137647855,3.5003,142.84,142.8,3.5011]
[1728137648051,3.5003,142.84,142.81,4.88]
[1728137657365,14.2503,142.84,142.81,4.88]
[1728137659873,3.5003,142.84,142.81,4.88]
[1728137660064,3.5003,142.84,142.81,8.3809]
[1728137660469,3.5003,142.84,142.81,4.88]
[1728137667474,10.75,142.84,142.76,1.35]
[1728137667675,10.75,142.84,142.78,10.75]
[1728137668275,3.5009,142.82,142.78,14.2516]
[1728137669467,10.75,142.83,142.78,10.75]
[1728137669671,10.75,142.79,142.78,4.88]
[1728137670072,14.2514,142.79,142.78,4.88]
[1728137671082,10.75,142.79,142.77,4.88]
[1728137671270,10.75,142.78,142.77,4.88]
[1728137671470,14.2517,142.78,142.77,4.88]
[1728137671875,3.5009,142.82,142.77,4.88]
[1728137672068,10.75,142.8,142.77,4.88]
[1728137672976,14.2513,142.8,142.77,4.88]
[1728137675287,3.5014,142.79,142.77,4.88]
[1728137675980,10.75,142.8,142.77,4.88]
[1728137676180,10.75,142.8,142.77,8.3819]
[1728137678279,14.2512,142.8,142.77,8.3819]
[1728137678479,14.2512,142.8,142.77,4.88]
[1728137683787,14.2512,142.8,142.77,8.3819]
[1728137686485,14.251,142.81,142.77,8.3819]
[1728137686695,14.251,142.81,142.78,3.5016]
[1728137687183,14.251,142.81,142.77,4.88]
[1728137687382,14.251,142.81,142.77,8.3818]
[1728137688883,3.501,142.81,142.77,8.3818]
[1728137689083,14.251,142.81,142.77,8.3818]
[1728137695693,10.75,142.81,142.77,8.3818]
[1728137695898,3.5012,142.8,142.77,8.3818]
[1728137696098,2.7823,142.84,142.79,10.75]
[1728137696099,82.05776721,142.84,142.79,10.75]
[1728137696303,14.37512,142.85,142.8,15.63]
[1728137696689,10.87502,142.85,142.81,3.5008]
[1728137697093,3.5002,142.84,142.81,3.5008]
[1728137697397,0.12502,142.85,142.83,10.75]
[1728137697591,0.12502,142.85,142.84,15.63]
[1728137698996,0.12502,142.85,142.84,19.1302]
[1728137699694,0.12502,142.85,142.82,3.5006]
[1728137699918,10.75,142.84,142.77,72.67857996]
[1728137700194,3.5003,142.84,142.8,3.5012]
[1728137700397,3.5003,142.84,142.81,4.88]
[1728137700594,10.75,142.84,142.81,4.88]
[1728137702095,14.2504,142.84,142.81,4.88]
[1728137703495,10.75,142.84,142.81,4.88]
[1728137704109,14.2503,142.84,142.81,4.88]
[1728137704592,3.5003,142.84,142.81,4.88]
[1728137704796,14.2503,142.84,142.81,4.88]
[1728137705295,3.5005,142.83,142.81,4.88]
[1728137706401,14.2507,142.82,142.81,4.88]
[1728137706602,10.75,142.82,142.8,4.88]
[1728137706790,10.75,142.81,142.8,4.88]
[1728137706988,14.2509,142.81,142.8,4.88]
[1728137707587,10.75,142.81,142.75,14.2522]
[1728137707795,14.2515,142.79,142.76,4.88]
[1728137708001,2.7087,142.84,142.76,8.382]
[1728137708209,10.75,142.81,142.76,19.132]
[1728137708403,10.75,142.81,142.76,15.63]
[1728137708604,14.2511,142.81,142.77,3.5019]
[1728137709690,3.5011,142.81,142.77,3.5019]
[1728137709894,14.2511,142.81,142.77,3.5019]
[1728137710709,3.5014,142.79,142.76,19.1321]
[1728137710910,3.5014,142.79,142.76,15.63]
[1728137712110,3.5014,142.79,142.76,19.1321]
[1728137712504,3.5017,142.78,142.76,4.88]
[1728137712810,10.75,142.8,142.76,4.88]
[1728137714995,3.5018,142.78,142.76,4.88]
[1728137716307,10.75,142.8,142.76,8.3821]
[1728137718105,3.5014,142.79,142.76,8.3821]
[1728137718309,3.5014,142.79,142.76,19.1321]
[1728137719213,10.75,142.81,142.76,19.1321]
[1728137719407,3.5013,142.8,142.76,19.1321]
[1728137723509,3.5014,142.79,142.76,19.1321]
[1728137723702,3.5014,142.79,142.76,4.88]
[1728137725219,3.5017,142.78,142.76,4.88]
[1728137726313,3.5019,142.77,142.76,4.88]
[1728137727321,3.5019,142.77,142.74,1.3709]
[1728137727617,3.5022,142.76,142.75,4.88]
[1728137729616,3.5022,142.76,142.73,14.37772]
[1728137729617,3.5026,142.74,142.73,0.12502]
[1728137729821,14.2526,142.74,142.73,0.12502]
[1728137730211,3.5026,142.74,142.73,0.12502]
[1728137730413,14.2526,142.74,142.73,0.12502]
[1728137730918,3.5039,142.69,142.67,0.12502]
[1728137731523,1.4045,142.73,142.63,0.12518]
[1728137731524,14.2541,142.68,142.63,0.12518]
[1728137731718,1.3708,142.68,142.64,10.75]
[1728137731910,4.88,142.71,142.65,10.75]
[1728137732125,3.5041,142.69,142.65,10.75]
[1728137732422,10.75,142.7,142.63,10.87518]
[1728137732423,4.88,142.7,142.63,10.87518]
[1728137732621,10.75,142.69,142.63,0.12518]
[1728137732924,1.3708,142.72,142.63,19.26048]
[1728137732925,10.75,142.68,142.63,19.26048]
[1728137733220,10.75,142.69,142.63,15.75518]
[1728137735025,83.50768592,142.72,142.66,10.75]
[1728137735216,10.75,142.71,142.66,10.75]
[1728137735528,10.75,142.71,142.66,15.63]
[1728137735827,3.5039,142.69,142.66,15.63]
[1728137736120,10.75,142.71,142.66,15.63]
[1728137736421,3.504,142.69,142.66,15.63]
[1728137736815,10.75,142.7,142.66,15.63]
[1728137737011,3.5042,142.68,142.66,15.63]
[1728137737322,10.75,142.7,142.66,15.63]
[1728137737517,10.75,142.7,142.66,4.88]
[1728137737714,10.75,142.67,142.63,0.12518]
[1728137738421,1.319,142.71,142.61,0.12502]
[1728137738422,10.75,142.64,142.61,0.12502]
[1728137738623,10.75,142.65,142.61,0.12502]
[1728137738923,1.412,142.66,142.62,3.5055]
[1728137739114,12.162,142.66,142.62,3.5055]
[1728137739312,12.162,142.66,142.61,0.12502]
[1728137739313,10.75,142.63,142.61,0.12502]
[1728137739508,14.2553,142.64,142.61,0.12502]
[1728137739914,10.75,142.65,142.61,0.12502]
[1728137740827,3.5052,142.64,142.61,0.12502]
[1728137742122,14.2552,142.64,142.61,0.12502]
[1728137742429,14.2556,142.62,142.61,0.12502]
[1728137742918,3.5056,142.62,142.61,0.12502]
[1728137743529,14.2556,142.62,142.61,0.12502]
[1728137743826,5.22,142.65,142.61,0.12502]
[1728137744016,10.75,142.62,142.61,0.12502]
[1728137745229,10.75,142.64,142.61,0.12502]
[1728137745624,3.5056,142.62,142.61,0.12502]
[1728137746229,10.75,142.63,142.61,0.12502]
[1728137746825,3.5056,142.62,142.61,0.12502]
[1728137747028,1.412,142.66,142.61,3.63072]
[1728137747231,10.75,142.64,142.61,0.12502]
[1728137747421,3.5055,142.63,142.61,0.12502]
[1728137747830,10.75,142.63,142.61,0.12502]
[1728137748031,3.5056,142.62,142.61,0.12502]
[1728137749727,14.2555,142.63,142.61,0.12502]
[1728137749935,10.75,142.63,142.61,0.12502]
[1728137750332,1.412,142.66,142.61,0.12502]
[1728137750539,10.75,142.64,142.61,0.12502]
[1728137750725,10.75,142.63,142.61,0.12502]
[1728137751425,3.5056,142.62,142.61,0.12502]
[1728137752430,3.5052,142.64,142.61,0.12502]
[1728137752834,10.75,142.65,142.61,0.12502]
[1728137753036,3.5055,142.63,142.61,0.12502]
[1728137754044,83.53307738,142.7,142.61,0.12502]
[1728137754233,10.75,142.66,142.61,5.36502]
[1728137755034,3.505,142.65,142.61,8.87072]
[1728137755938,10.75,142.66,142.61,8.87072]
[1728137756148,3.5051,142.64,142.61,8.87072]
[1728137756442,10.75,142.66,142.61,8.87072]
[1728137756840,14.2551,142.64,142.61,8.87082]
[1728137757035,10.75,142.64,142.61,8.87082]
[1728137757944,14.2551,142.64,142.61,8.87082]
[1728137763048,3.5055,142.63,142.61,5.36502]
[1728137763252,10.75,142.64,142.61,5.36502]
[1728137763753,14.2552,142.64,142.61,8.87082]
[1728137764255,14.2556,142.63,142.61,5.36502]
[1728137771051,10.75,142.63,142.61,5.36502]
[1728137771251,3.5056,142.62,142.61,0.12502]
[1728137771461,5.24,142.69,142.61,0.12502]
[1728137771650,10.75,142.64,142.61,0.12502]
[1728137771847,14.2553,142.64,142.61,0.12502]
[1728137772258,5.24,142.69,142.61,3.63072]
[1728137772469,10.75,142.63,142.61,0.12502]
[1728137773258,83.53307738,142.7,142.61,10.87502]
[1728137773446,10.75,142.66,142.61,10.87502]
[1728137773653,10.75,142.66,142.62,5.32]
[1728137773851,10.75,142.66,142.63,3.5052]
[1728137774449,82.14937738,142.7,142.62,5.32]
[1728137774650,8.75249253,142.75,142.66,10.75]
[1728137774856,10.75,142.71,142.67,5.32]
[1728137776251,10.75,142.71,142.68,3.5041]
[1728137779657,10.75,142.7,142.67,5.32]
[1728137779954,10.75,142.7,142.67,8.8243]
[1728137781149,10.75,142.7,142.68,3.5041]
[1728137782061,14.2537,142.7,142.67,8.8244]
[1728137782660,3.5039,142.69,142.67,5.32]
[1728137783052,10.75,142.7,142.67,5.32]
[1728137783253,14.2537,142.7,142.67,5.32]
[1728137784260,10.75,142.69,142.67,5.32]
[1728137784565,14.2543,142.68,142.66,5.32]
[1728137784755,14.2543,142.68,142.64,3.5049]
[1728137784962,14.2543,142.68,142.65,5.32]
[1728137785359,14.2543,142.68,142.65,8.8248]
[1728137786056,14.2543,142.68,142.65,5.32]
[1728137787468,3.5044,142.67,142.65,5.32]
[1728137787962,3.5044,142.67,142.64,3.505]
[1728137788149,3.5044,142.67,142.65,5.32]
[1728137791061,3.5037,142.7,142.67,3.5044]
[1728137791270,10.75,142.71,142.68,5.32]
[1728137791463,5.32,142.75,142.68,5.32]
[1728137791669,10.75,142.71,142.68,5.32]
[1728137791864,10.75,142.71,142.69,3.5037]
[1728137793767,0.12502,142.73,142.71,3.5032]
[1728137794062,0.12502,142.73,142.72,10.75]
[1728137794264,6.741,142.82,142.77,3.5017]
[1728137794461,1.421,142.82,142.76,5.32]
[1728137794761,10.75,142.8,142.76,5.32]
[1728137795157,3.501,142.81,142.77,3.5017]
[1728137795362,10.75,142.8,142.77,3.5017]
[1728137796365,10.75,142.8,142.76,16.07]
[1728137796556,10.75,142.82,142.78,3.5017]
[1728137797363,10.75,142.82,142.77,10.75]
[1728137797569,10.75,142.83,142.79,10.75]
[1728137797775,10.75,142.83,142.8,5.32]
[1728137798475,10.75,142.83,142.8,8.821]
[1728137798679,10.75,142.83,142.8,5.32]
[1728137798972,14.2504,142.83,142.8,5.32]
[1728137800173,0.03512857,142.84,142.8,5.32]
[1728137800374,14.28542857,142.84,142.81,3.5009]
[1728137800677,0.03512857,142.84,142.81,10.75]
[1728137800974,0.03512857,142.84,142.83,3.5004]
[1728137801174,0.14709828,142.86,142.83,19.48039145]
[1728137801362,14.66684731,142.91,142.87,3.4995]
[1728137801563,14.66684731,142.91,142.87,8.7195]
[1728137801870,0.41834731,142.91,142.87,19.4695]
[1728137803072,10.96126208,142.88,142.84,5.22]
[1728137803277,10.75,142.86,142.84,5.22]
[1728137804174,3.4995,142.87,142.84,5.22]
[1728137806265,0.21126208,142.88,142.84,15.97]
[1728137806465,0.21126208,142.88,142.85,3.4998]
[1728137806668,0.21126208,142.88,142.85,14.2498]
[1728137806868,0.21126208,142.88,142.85,10.75]
[1728137807068,0.21126208,142.88,142.86,10.75]
[1728137807269,0.21126208,142.88,142.87,5.22]
[1728137807667,0.21126208,142.88,142.87,8.7195]
[1728137808266,0.21126208,142.88,142.87,19.4695]
[1728137808472,0.21856903,142.89,142.88,3.4992]
[1728137810081,0.41834731,142.91,142.9,3.4987]
[1728137810281,0.41834731,142.91,142.9,19.4687]
[1728137811181,0.41834731,142.91,142.9,8.7187]
[1728137811482,0.41834731,142.91,142.9,19.4687]
[1728137811992,0.47722583,142.93,142.91,3.4985]
[1728137812195,0.47722583,142.93,142.92,10.75]
[1728137812400,0.69863071,142.95,142.92,10.75]
[1728137812593,0.69863071,142.95,142.94,10.75]
[1728137813099,0.69863071,142.95,142.94,14.2477]
[1728137813902,0.7380564,142.97,142.96,14.2473]
[1728137814198,0.7380564,142.97,142.96,19.4673]
[1728137815597,0.7380564,142.97,142.96,5.22]
[1728137816798,0.7380564,142.97,142.96,8.7173]
[1728137818999,0.7380564,142.97,142.96,5.22]
[1728137819405,0.7380564,142.97,142.93,21.58105973]
[1728137819700,0.7380564,142.97,142.94,8.7177]
[1728137821094,4.2351564,142.97,142.94,8.7177]
[1728137821297,4.2351564,142.97,142.93,21.5949]
[1728137821495,4.2351564,142.97,142.94,5.22]
[1728137821696,0.7380564,142.97,142.94,5.22]
[1728137822197,0.7380564,142.97,142.94,8.7176]
[1728137822907,0.7380564,142.97,142.95,3.4974]
[1728137823805,0.7380564,142.97,142.96,5.22]
[1728137823998,0.7380564,142.97,142.96,8.7173]
[1728137824198,0.7380564,142.97,142.96,25.4973]
[1728137824397,1.04285601,143.0,142.99,3.4965]
[1728137824600,1.04285601,143.0,142.99,8.7165]
[1728137829313,1.04285601,143.0,142.98,16.78]
[1728137829507,1.04285601,143.0,142.99,5.16]
[1728137830201,1.04285601,143.0,142.99,8.6565]
[1728137831514,1.04099876,143.02,143.01,3.496]
[1728137832021,0.12502,143.03,143.02,3.4958]
[1728137832210,0.12502,143.03,143.02,25.4358]
[1728137834014,0.9306259,143.04,143.03,3.4955]
[1728137837016,0.9306259,143.04,143.03,8.6555]
[1728137837923,0.9306259,143.04,143.03,3.4955]
[1728137838111,0.9306259,143.04,143.03,8.6555]
[1728137838307,1.30502801,143.07,143.05,3.4951]
[1728137838513,1.30502801,143.07,143.05,20.2751]
[1728137839121,1.68190375,143.09,143.06,3.4948]
[1728137839312,1.68190375,143.09,143.08,16.78]
[1728137839514,1.68190375,143.09,143.08,21.94]
[1728137840021,1.68190375,143.09,143.08,25.4343]
[1728137843028,1.68190375,143.09,143.08,20.2743]
[1728137843221,1.68190375,143.09,143.06,16.78]
[1728137843422,1.68190375,143.09,143.01,10.43704445]
[1728137843627,3.4952,143.05,143.02,16.78]
[1728137844029,3.4952,143.05,143.03,5.16]
[1728137844532,1.3558,143.08,143.03,5.16]
[1728137844728,3.4949,143.06,143.03,5.16]
[1728137845225,4.8502,143.08,143.04,20.2753]
[1728137846228,3.4944,143.08,143.04,20.2753]
[1728137846429,1.68190375,143.09,143.06,20.2747]
[1728137846632,1.68190375,143.09,143.07,5.16]
[1728137848135,3.4954,143.04,143.02,16.78]
[1728137848432,1.68190375,143.09,143.03,5.16]
[1728137848828,3.4952,143.05,143.03,5.16]
[1728137849022,1.68190375,143.09,143.03,5.16]
[1728137849327,1.68190375,143.09,143.03,21.94]
[1728137849515,3.4944,143.08,143.04,3.4952]
[1728137850126,3.4944,143.08,143.03,21.94]
[1728137850127,5.17610375,143.09,143.05,3.4949]
[1728137850329,5.17610375,143.09,143.06,5.16]
[1728137851332,3.4946,143.08,143.06,5.16]
[1728137851533,1.68190375,143.09,143.06,5.16]
[1728137851723,1.68190375,143.09,143.03,20.2755]
[1728137851926,1.68190375,143.09,143.06,5.16]
[1728137852122,3.4946,143.07,143.06,5.16]
[1728137853934,16.78,143.07,142.95,7.2963623]
[1728137854136,1.68190375,143.09,142.98,5.16]
[1728137854137,16.78,143.05,142.98,5.16]
[1728137854332,3.4958,143.02,142.96,89.33177226]
[1728137854530,2.7413,143.04,142.98,5.16]
[1728137855029,2.7413,143.04,142.98,8.6567]
[1728137855630,3.496,143.02,142.98,8.6567]
[1728137855825,2.7413,143.04,142.98,5.16]
[1728137856026,2.7413,143.04,143.0,3.4962]
[1728137856226,2.7413,143.04,143.01,5.16]
[1728137856540,6.2367,143.04,143.01,5.16]
[1728137857242,3.4958,143.02,143.01,5.16]
[1728137857746,3.4965,142.99,142.97,0.12502]
[1728137858043,19.5213,143.04,142.98,5.16]
[1728137858434,3.4967,142.99,142.98,5.16]
[1728137859130,3.4967,142.99,142.97,0.12502]
[1728137859131,19.5213,143.04,142.97,0.12502]
[1728137859330,3.4968,142.98,142.97,5.24502]
[1728137859639,19.5213,143.04,142.97,5.24502]
[1728137859837,3.4968,142.98,142.97,5.24502]
[1728137860042,16.78,143.03,142.9,7.30106946]
[1728137860240,16.78,143.03,142.9,12.42106946]
[1728137860241,1.3979,142.97,142.9,12.42106946]
[1728137860435,1.3979,142.97,142.9,5.12]
[1728137861631,3.4979,142.94,142.9,5.12]
[1728137862649,3.498,142.93,142.9,5.12]
[1728137870639,3.498,142.93,142.9,8.6187]
[1728137876941,4.1448,142.97,142.9,8.6187]
[1728137877143,4.1448,142.97,142.91,3.62352]
[1728137877647,3.4977,142.95,142.91,3.62352]
[1728137878349,3.4978,142.94,142.91,3.62352]
[1728137882642,4.1448,142.97,142.91,0.12502]
[1728137882840,16.78,142.93,142.91,0.12502]
[1728137883044,16.78,142.93,142.83,18.1824]
[1728137883240,3.4993,142.88,142.85,3.62482]
[1728137883446,3.4993,142.88,142.85,8.74482]
[1728137883651,10.74,142.89,142.85,8.74482]
[1728137883856,14.239,142.89,142.85,8.74482]
[1728137884252,3.499,142.89,142.85,19.48482]
[1728137885246,3.499,142.89,142.86,3.4997]
[1728137885658,1.3342,142.9,142.85,22.02502]
[1728137885963,3.4983,142.92,142.87,16.78]
[1728137886155,3.4983,142.92,142.88,5.12]
[1728137887061,3.4983,142.92,142.89,3.499]
[1728137889355,3.4981,142.93,142.89,3.499]
[1728137891960,18.1422,142.94,142.88,5.12]
[1728137892267,16.78,142.92,142.86,5.06]
[1728137893060,3.4989,142.9,142.86,8.5596]
[1728137894159,3.4992,142.89,142.86,5.06]
[1728137894362,16.78,142.92,142.86,5.06]
[1728137895462,3.4994,142.88,142.85,0.12502]
[1728137895653,21.84,142.91,142.85,0.12502]
[1728137896957,3.4989,142.9,142.85,3.62492]
[1728137897263,21.84,142.91,142.85,0.12502]
[1728137898058,3.4991,142.89,142.86,3.4996]
[1728137901559,21.84,142.91,142.85,0.12502]
[1728137901756,3.4993,142.88,142.85,3.62482]
[1728137904073,16.78,142.92,142.85,0.12502]
[1728137904662,3.4989,142.9,142.87,3.4994]
[1728137911571,14.2389,142.9,142.87,3.4994]
[1728137912780,10.74,142.88,142.85,0.12502]
[1728137913284,14.2393,142.88,142.85,3.62492]
[1728137913975,10.74,142.87,142.85,0.12502]
[1728137916587,10.74,142.88,142.86,3.4997]
[1728137916786,10.74,142.89,142.86,3.4997]
[1728137918185,14.239,142.89,142.86,3.4997]
[1728137919286,1.3622,142.94,142.86,10.74]
[1728137919597,10.74,142.92,142.88,3.4992]
[1728137920084,3.4986,142.91,142.87,15.74]
[1728137920285,10.74,142.92,142.87,19.2393]
[1728137920981,3.4988,142.9,142.87,19.2393]
[1728137923590,3.4986,142.91,142.88,3.4992]
[1728137925191,3.4987,142.9,142.87,19.2393]
[1728137925789,3.4987,142.9,142.87,8.4993]
[1728137932390,14.2387,142.9,142.87,8.4993]
[1728137933795,1.3622,142.94,142.87,15.74]
[1728137933985,14.2384,142.92,142.89,3.4988]
[1728137934792,14.2384,142.92,142.87,15.74]
[1728137934793,10.74,142.92,142.87,15.74]
[1728137934997,3.4985,142.91,142.88,3.4991]
[1728137938692,10.74,142.92,142.87,15.74]
[1728137938900,1.3622,142.94,142.88,10.74]
[1728137939080,10.74,142.94,142.88,10.74]
[1728137939285,14.2379,142.94,142.9,3.4985]
[1728137939499,14.2379,142.94,142.9,8.4985]
[1728137939998,85.50523286,142.95,142.9,15.74]
[1728137940296,85.50523286,142.95,142.91,10.74]
[1728137940694,82.00763286,142.95,142.93,10.74]
[1728137940898,0.12502,142.97,142.94,10.74]
[1728137941085,0.12502,142.97,142.96,14.2373]
[1728137941596,0.12502,142.97,142.96,19.2373]
[1728137941992,0.12502,142.97,142.96,5.0]
[1728137942192,10.86502,142.97,142.96,5.0]
[1728137942400,3.4974,142.96,142.93,5.0]
[1728137943091,14.2376,142.95,142.93,5.0]
[1728137943302,10.74,142.94,142.93,5.0]
[1728137943600,10.74,142.94,142.9,19.2386]
[1728137943792,10.74,142.92,142.9,5.0]
[1728137944498,3.4981,142.93,142.9,5.0]
[1728137945797,3.4981,142.93,142.9,8.4987]
[1728137946195,10.74,142.94,142.9,8.4987]
[1728137946402,14.2378,142.94,142.9,8.4987]
[1728137948495,10.74,142.92,142.9,5.0]
[1728137948891,10.74,142.93,142.9,5.0]
[1728137950297,10.74,142.93,142.9,8.4987]
[1728137951203,14.2381,142.93,142.9,8.4987]
[1728137951598,10.74,142.93,142.9,5.0]
[1728137952402,3.4985,142.92,142.9,5.0]
[1728137955498,3.4985,142.91,142.9,5.0]
[1728137959814,3.4983,142.92,142.9,5.0]
[1728137963223,3.4985,142.91,142.9,5.0]
[1728137964629,3.4985,142.91,142.88,19.2191]
[1728137967325,3.4984,142.92,142.88,19.2191]
[1728137972719,3.4985,142.91,142.88,8.4791]
[1728137973421,14.239,142.89,142.86,8.4796]
[1728137973624,10.74,142.88,142.86,8.4796]
[1728137978334,14.239,142.89,142.86,8.4796]
[1728137979031,10.74,142.88,142.85,5.02502]
[1728137979228,14.2394,142.88,142.85,8.52492]
[1728137982037,14.2394,142.88,142.85,5.02502]
[1728137982848,3.4995,142.87,142.85,5.02502]
[1728137985939,3.4995,142.87,142.85,0.12502]
[1728137987853,14.2396,142.87,142.85,0.12502]
[1728137988941,14.2386,142.91,142.87,3.4994]
[1728137989544,14.2386,142.91,142.86,15.64]
[1728137990743,14.2386,142.91,142.87,3.4993]
[1728137991140,10.74,142.91,142.87,3.4993]
[1728137991446,3.4988,142.9,142.87,3.4993]
[1728137992744,10.74,142.89,142.87,3.4993]
[1728137993742,10.74,142.89,142.86,4.9]
[1728137993943,10.74,142.88,142.86,4.9]
[1728137994641,10.74,142.88,142.86,8.3995]
[1728137994842,10.74,142.9,142.86,8.3995]
[1728137995344,14.2389,142.9,142.86,8.3995]
[1728137998151,10.74,142.88,142.86,8.3995]
[1728137999638,3.4991,142.89,142.86,8.3995]
[1728137999838,10.74,142.9,142.86,4.9]
[1728138000142,10.74,142.9,142.88,3.4991]
[1728138000447,3.498,142.93,142.9,3.4985]
[1728138000745,3.498,142.93,142.88,10.74]
[1728138000746,10.74,142.93,142.89,4.9]
[1728138001045,10.74,142.95,142.9,10.74]
[1728138001953,14.2377,142.95,142.91,3.4984]
[1728138002157,10.74,142.93,142.91,3.4984]
[1728138003551,3.4979,142.94,142.91,3.4984]
[1728138003750,82.11597634,142.97,142.91,10.74]
[1728138003946,82.11597634,142.97,142.94,10.74]
[1728138004139,82.11597634,142.97,142.88,3.42567331]
[1728138004140,0.12502,142.97,142.95,15.64]
[1728138004540,0.12502,142.97,142.96,14.2373]
[1728138004735,1.3398,143.04,142.96,10.74]
[1728138004936,4.9279,143.05,143.01,3.4958]
[1728138005141,10.74,143.04,143.01,8.3958]
[1728138006038,10.74,143.04,143.01,4.9]
[1728138006039,14.2353,143.04,143.01,4.9]
[1728138006240,10.74,143.04,143.01,4.9]
[1728138006448,10.86502,143.03,143.01,4.9]
[1728138006650,14.36072,143.03,143.01,4.9]
[1728138007146,10.86502,143.03,143.01,4.9]
[1728138007651,10.74,143.02,143.01,4.9]
[1728138008248,14.2358,143.02,143.01,4.9]
[1728138009453,10.74,143.02,142.96,1.3453]
[1728138009649,10.74,142.99,142.97,4.92]
[1728138010254,3.4968,142.98,142.97,4.92]
[1728138010440,10.74,142.98,142.93,10.74]
[1728138010754,10.74,142.98,142.94,4.92]
[1728138010940,3.497,142.97,142.94,4.92]
[1728138011141,10.74,142.98,142.94,4.92]
[1728138011754,0.12502,143.03,142.94,15.66]
[1728138011947,10.74,143.0,142.94,15.66]
[1728138012147,14.2359,143.02,142.98,3.4967]
[1728138012343,10.74,143.02,142.99,4.92]
[1728138013155,14.236,143.02,142.99,4.92]
[1728138013853,14.236,143.02,142.99,8.4165]
[1728138014058,14.236,143.02,142.99,4.92]